bitfinex-derivatives/quotes_ETHF0:USTF0_20250220
["timestamp","ask_amount","ask_price","bid_price","bid_amount"]
[1740010870407,4.52923,2718.6,2718.4,0.74128501]
[1740010870699,4.52923,2718.6,2718.4,0.00551501]
[1740010871095,4.52923,2718.6,2718.4,0.74129501]
[1740010871299,3.7935,2718.6,2718.4,0.74129501]
[1740010872099,3.7935,2718.6,2718.4,0.00551501]
[1740010872702,3.7935,2718.6,2718.5,0.73575]
[1740010874404,3.7935,2718.6,2718.4,0.00551501]
[1740010874605,3.7935,2718.6,2718.4,0.74128501]
[1740010875306,3.7935,2718.6,2718.4,0.00551501]
[1740010875307,4.52923,2718.6,2718.4,0.00551501]
[1740010876104,4.52923,2718.6,2718.4,0.74129501]
[1740010876305,3.7935,2718.6,2718.4,0.74129501]
[1740010876505,4.52923,2718.6,2718.4,0.74129501]
[1740010876704,4.52923,2718.6,2718.4,0.00551501]
[1740010876907,0.73575,2718.5,2718.4,0.00551501]
[1740010877205,4.52924,2718.6,2718.4,0.00551501]
[1740010877404,3.7935,2718.6,2718.4,0.00551501]
[1740010877606,0.73575,2718.5,2718.4,0.00551501]
[1740010877801,1.28765,2718.5,2718.4,0.00551501]
[1740010878307,6.5519,2718.5,2717.5,3.2078]
[1740010878516,0.7359,2718.0,2717.7,0.73595]
[1740010878701,1.1044,2717.9,2717.7,0.73595]
[1740010879311,1.1044,2717.9,2717.8,0.73594]
[1740010879715,1.1044,2717.9,2717.5,3.21331501]
[1740010879913,3.2078,2717.8,2717.5,0.00551501]
[1740010880118,3.94376,2717.8,2717.5,0.00551501]
[1740010880614,3.2078,2717.8,2717.5,0.00551501]
[1740010881117,3.94374,2717.8,2717.5,0.00551501]
[1740010884008,4.23665222,2717.8,2717.5,0.00551501]
[1740010885420,4.23665222,2717.8,2717.5,0.74153501]
[1740010885718,4.23665222,2717.8,2717.5,0.00551501]
[1740010886315,4.23665222,2717.8,2717.5,0.74153501]
[1740010886514,4.23665222,2717.8,2717.5,0.00551501]
[1740010886715,3.2078,2717.8,2717.5,0.00551501]
[1740010887025,3.2078,2717.8,2717.6,0.73599]
[1740010887321,3.94375,2717.8,2717.5,0.74152501]
[1740010888322,3.94375,2717.8,2717.5,0.74153501]
[1740010889623,3.94375,2717.8,2717.5,0.00551501]
[1740010890125,3.94375,2717.8,2717.5,0.74152501]
[1740010891232,3.2078,2717.8,2717.7,0.73597]
[1740010893220,3.2078,2717.8,2717.5,0.00551501]
[1740010893424,0.576,2717.7,2717.6,0.736]
[1740010907232,0.576,2717.7,2717.6,3.736]
[1740010909234,6.1987,2718.1,2717.9,0.7359]
[1740010910734,3.7967,2718.1,2717.7,0.5383]
[1740010910923,3.7967,2718.1,2718.0,0.73589]
[1740010912527,3.7967,2718.1,2717.9,0.7359]
[1740010912732,3.2078,2718.5,2717.8,3.7773]
[1740010912924,3.2078,2718.5,2718.4,0.73577]
[1740010914841,0.5701,2718.6,2718.3,0.5479]
[1740010915034,0.00551501,2718.7,2718.6,0.73573]
[1740010916031,0.00551501,2718.7,2718.6,3.73573]
[1740010916228,2.406,2719.3,2718.6,0.73573]
[1740010916534,2.406,2719.3,2719.2,0.73556]
[1740010917038,0.5818,2719.4,2718.9,1.1201]
[1740010917239,3.2078,2720.0,2719.1,3.2078]
[1740010917435,0.00551501,2719.4,2719.2,3.5843]
[1740010917635,0.00551501,2719.4,2719.3,0.73553]
[1740010919135,0.00551501,2719.4,2719.3,3.73553]
[1740010926344,0.00551501,2719.4,2719.3,3.0]
[1740010926545,0.00551501,2719.4,2719.3,3.73554]
[1740010926748,0.00551501,2719.4,2719.3,3.0]
[1740010927043,0.00551501,2719.4,2719.1,3.2078]
[1740010927243,0.00551501,2719.4,2719.3,0.73554]
[1740010927244,3.21331501,2719.4,2719.3,0.73554]
[1740010927744,0.00551501,2719.4,2719.3,0.73554]
[1740010928048,1.1066,2719.8,2719.3,0.73554]
[1740010928049,0.5637,2719.8,2719.7,0.73543]
[1740010929345,0.5857,2719.9,2719.8,0.7354]
[1740010929936,0.5857,2719.9,2719.7,3.2078]
[1740010929937,0.00551501,2720.0,2719.9,0.73537]
[1740010931141,0.00551501,2720.0,2719.9,1.28477]
[1740010932850,0.00551501,2720.0,2719.9,0.5494]
[1740010933149,0.00551501,2720.0,2719.6,0.73545]
[1740010933350,0.74086501,2720.0,2719.5,0.73547]
[1740010933558,0.74088501,2720.0,2719.5,0.73547]
[1740010933851,0.74088501,2720.0,2719.6,0.73546]
[1740010934145,0.00551501,2720.0,2719.4,3.2078]
[1740010934339,0.00551501,2720.0,2719.9,0.73537]
[1740010938356,1.1444,2720.6,2720.5,0.73521]
[1740010938749,1.1444,2720.6,2720.2,3.2078]
[1740010939050,1.1444,2720.6,2720.1,3.0]
[1740010939051,1.7216,2720.6,2720.1,3.0]
[1740010939255,0.73522,2720.5,2720.1,3.0]
[1740010939549,3.2078,2720.3,2720.1,3.00551501]
[1740010939758,3.94308,2720.3,2720.1,3.00551501]
[1740010940053,0.5735,2720.2,2720.1,3.00551501]
[1740010940556,0.5735,2720.2,2719.9,0.73535]
[1740010940754,2.415,2720.1,2719.9,0.73536]
[1740010941254,2.415,2720.1,2720.0,0.73535]
[1740010941650,2.415,2720.1,2719.8,0.00551501]
[1740010941850,2.415,2720.1,2720.0,0.73535]
[1740010942349,2.415,2720.1,2719.8,0.00551501]
[1740010942350,0.73536,2720.0,2719.8,0.00551501]
[1740010942648,1.30856,2720.0,2719.8,0.00551501]
[1740010942849,3.781,2720.0,2719.8,0.00551501]
[1740010943255,0.73537,2719.9,2719.8,0.00551501]
[1740010943447,0.73544,2719.7,2719.2,0.73555]
[1740010943649,2.422,2719.6,2719.2,0.73555]
[1740010943852,3.0096,2719.6,2719.1,3.2078]
[1740010944149,3.0096,2719.6,2719.5,0.73548]
[1740010944354,3.0096,2719.6,2719.1,3.2078]
[1740010944552,3.74507,2719.6,2719.3,0.00551501]
[1740010944858,3.0096,2719.6,2719.3,0.00551501]
[1740010945059,3.0096,2719.6,2719.5,0.73548]
[1740010945354,3.0096,2719.6,2719.3,0.00551501]
[1740010945656,0.73549,2719.5,2719.3,0.00551501]
[1740010945852,3.0096,2719.6,2719.3,0.00551501]
[1740010946051,3.74507,2719.6,2719.1,3.94339]
[1740010946250,3.74507,2719.6,2717.0,0.368]
[1740010946251,0.73561,2719.1,2718.6,0.73571]
[1740010946458,3.2078,2718.8,2718.4,3.0]
[1740010946657,3.2078,2718.8,2718.4,44.53576]
[1740010946858,3.2078,2718.8,2718.6,0.73572]
[1740010947556,3.2078,2718.8,2718.4,3.00551501]
[1740010947755,3.2078,2718.8,2718.5,0.73574]
[1740010947954,3.2078,2718.8,2718.4,3.00551501]
[1740010948158,3.2078,2718.8,2718.4,0.00551501]
[1740010948466,3.2078,2718.5,2718.4,0.00551501]
[1740010948657,3.94355,2718.5,2718.4,0.00551501]
[1740010948858,3.2078,2718.5,2718.4,0.00551501]
[1740010949362,4.00321377,2718.5,2718.0,3.0]
[1740010949563,3.2078,2718.5,2718.2,0.73582]
[1740010949864,3.2078,2718.3,2718.2,0.73582]
[1740010950163,5.6398,2718.3,2718.2,0.73582]
[1740010950358,5.6398,2718.3,2717.7,3.2078]
[1740010950552,5.6398,2718.3,2718.1,0.73584]
[1740010950952,5.6398,2718.3,2718.2,0.73583]
[1740010951162,5.6398,2718.3,2718.0,0.00551501]
[1740010951366,5.6398,2718.3,2718.2,0.73583]
[1740010951753,5.6398,2718.3,2718.1,0.73585]
[1740010952858,5.6398,2718.3,2718.0,0.74139501]
[1740010953059,5.6398,2718.3,2718.0,0.00551501]
[1740010953456,1.32114,2718.2,2718.0,0.00551501]
[1740010953960,0.5778,2718.1,2718.0,0.74140501]
[1740010954467,0.5778,2718.1,2718.0,0.00551501]
[1740010955562,1.31366,2718.1,2718.0,0.00551501]
[1740010955764,0.5778,2718.1,2718.0,0.00551501]
[1740010958266,1.31366,2718.1,2718.0,0.00551501]
[1740010959069,0.5778,2718.1,2718.0,0.00551501]
[1740010959657,0.5778,2718.1,2718.0,0.74140501]
[1740010959862,0.5778,2718.1,2718.0,0.00551501]
[1740010960065,1.31366,2718.1,2718.0,0.00551501]
[1740010960969,0.5778,2718.1,2718.0,0.00551501]
[1740010961458,1.31366,2718.1,2718.0,0.00551501]
[1740010963775,0.5778,2718.1,2718.0,0.00551501]
[1740010963975,0.5778,2718.1,2718.0,0.74140501]
[1740010964379,0.5778,2718.1,2718.0,0.00551501]
[1740010964678,1.31366,2718.1,2718.0,0.00551501]
[1740010966976,0.5778,2718.1,2718.0,0.00551501]
[1740010967278,1.31366,2718.1,2718.0,0.00551501]
[1740010967676,0.736,2717.7,2717.4,1.87635]
[1740010967875,0.73602,2717.5,2717.4,0.5666]
[1740010968174,0.73604,2717.5,2717.1,0.73611]
[1740010968379,3.2078,2717.3,2717.2,0.73611]
[1740010968577,3.2078,2717.3,2717.0,0.5417]
[1740010968777,3.2078,2717.3,2717.2,0.73611]
[1740010969879,3.2078,2717.3,2717.0,0.5417]
[1740010970181,5.6248,2717.3,2717.2,0.73611]
[1740010970478,5.6248,2717.3,2717.1,0.73611]
[1740010970872,5.6248,2717.3,2717.0,0.5417]
[1740010971071,2.417,2717.3,2717.2,0.73611]
[1740010971378,5.6248,2717.3,2717.2,0.73611]
[1740010971676,5.6248,2717.3,2717.0,0.5417]
[1740010971977,5.6248,2717.3,2717.1,0.73613]
[1740010972378,5.6248,2717.3,2717.0,0.5417]
[1740010972573,5.6248,2717.3,2717.1,0.73613]
[1740010972780,5.6248,2717.3,2717.0,4.27784]
[1740010973174,5.6248,2717.3,2717.1,0.73612]
[1740010973576,5.6248,2717.3,2717.2,0.73611]
[1740010974480,2.417,2717.3,2717.2,0.73611]
[1740010975183,5.6248,2717.3,2717.2,0.73611]
[1740010980483,3.2078,2717.3,2717.2,0.73611]
[1740010981384,0.00551501,2717.4,2717.3,0.73608]
[1740010983782,0.00551501,2717.4,2717.2,0.73609]
[1740010984489,0.00551501,2717.4,2717.2,0.73611]
[1740010985484,0.00551501,2717.4,2717.1,3.0]
[1740010985680,0.00551501,2717.4,2717.3,0.73608]
[1740010990184,0.00551501,2717.4,2717.1,3.0]
[1740010990493,3.94936501,2717.4,2717.1,3.73612]
[1740010990884,3.21331501,2717.4,2717.1,3.0]
[1740010991084,3.21331501,2717.4,2717.3,0.73608]
[1740010993193,3.21331501,2717.4,2717.1,3.0]
[1740010993490,3.21331501,2717.4,2717.3,0.73608]
[1740010997795,0.00551501,2717.4,2717.3,0.73608]
[1740011000388,3.2078,2717.9,2717.3,13.941]
[1740011000594,3.2078,2717.9,2717.8,0.73594]
[1740011000795,2.417,2718.1,2717.5,3.2078]
[1740011000994,2.417,2718.1,2717.9,0.7359]
[1740011001192,2.417,2718.1,2717.4,43.76353]
[1740011001494,2.417,2718.1,2718.0,0.73589]
[1740011002196,1.13571501,2718.3,2717.4,43.76353]
[1740011002197,0.00551501,2718.3,2718.2,0.73583]
[1740011005901,0.00551501,2718.3,2717.9,0.5479]
[1740011006203,3.2078,2718.1,2717.9,0.5479]
[1740011007001,3.2078,2718.1,2717.9,1.2838]
[1740011007298,3.2078,2718.1,2717.5,3.7963]
[1740011007601,3.94369,2718.1,2717.7,0.73596]
[1740011007899,3.2078,2718.1,2717.8,0.73592]
[1740011008997,3.94368,2718.1,2717.6,1.28238]
[1740011009199,3.94368,2718.1,2717.7,0.73595]
[1740011009398,3.2078,2718.1,2717.6,0.5464]
[1740011009596,3.2078,2718.1,2717.8,0.73593]
[1740011009999,3.2078,2718.1,2717.6,0.5464]
[1740011010202,3.2078,2718.1,2718.0,0.73589]
[1740011012696,3.2078,2718.1,2717.6,3.7542]
[1740011012892,3.2078,2718.1,2718.0,0.73589]
[1740011013201,0.00551501,2718.3,2718.2,0.73583]
[1740011013402,0.53851501,2718.3,2718.2,0.73583]
[1740011014999,0.53851501,2718.3,2717.6,5.59413]
[1740011015503,0.53851501,2718.3,2718.2,0.73583]
[1740011016098,0.53851501,2718.3,2717.7,40.8]
[1740011016309,1.11241501,2718.3,2717.6,3.7542]
[1740011016502,1.11241501,2718.3,2718.0,0.73587]
[1740011016805,1.11241501,2718.3,2718.1,0.73586]
[1740011017202,1.11241501,2718.3,2717.6,3.7542]
[1740011017402,1.11241501,2718.3,2718.2,0.73583]
[1740011018109,0.00551501,2718.3,2718.2,0.73583]
[1740011019614,0.00551501,2718.3,2717.8,0.5862]
[1740011019807,0.56411501,2718.3,2717.8,0.5862]
[1740011020004,0.5859,2718.2,2718.1,0.73586]
[1740011020204,0.5859,2718.2,2717.8,0.5862]
[1740011020406,0.5859,2718.2,2718.0,0.73587]
[1740011021310,0.5859,2718.2,2718.1,0.73586]
[1740011021907,0.5859,2718.2,2718.0,0.73587]
[1740011022510,3.0089,2718.2,2717.8,0.5862]
[1740011022699,3.74475,2718.2,2717.8,0.73593]
[1740011022906,3.2078,2718.0,2717.6,0.5464]
[1740011023309,0.5824,2717.9,2717.8,0.73594]
[1740011023807,0.5824,2717.9,2717.3,3.7468]
[1740011023808,0.73597,2717.8,2717.3,3.7468]
[1740011024003,3.2078,2717.7,2717.3,3.7592]
[1740011024204,0.5538,2717.6,2717.3,1.28746]
[1740011024508,3.2078,2717.4,2717.1,0.73613]
[1740011024702,0.5824,2717.3,2717.1,0.73613]
[1740011024909,0.5824,2717.3,2717.0,41.3514]
[1740011025204,0.5824,2717.3,2717.1,0.73612]
[1740011025410,0.5824,2717.3,2717.2,0.73611]
[1740011025906,0.5824,2717.3,2717.1,0.73612]
[1740011026113,0.5824,2717.3,2716.9,0.00551501]
[1740011026114,3.0074,2717.3,2716.9,0.00551501]
[1740011026314,3.0074,2717.3,2717.0,0.73615]
[1740011026510,3.0074,2717.3,2716.9,0.74168501]
[1740011026810,3.94394,2717.1,2716.9,0.00551501]
[1740011027006,0.5898,2717.0,2716.9,0.00551501]
[1740011027408,0.5898,2717.0,2716.2,41.53636]
[1740011027709,0.5898,2717.0,2716.2,0.73636]
[1740011027710,3.2078,2716.5,2716.2,0.73636]
[1740011027911,0.5781,2716.4,2716.2,0.73636]
[1740011028511,0.5781,2716.4,2716.1,0.73639]
[1740011028715,0.5781,2716.4,2716.2,0.73636]
[1740011031014,0.5781,2716.4,2716.3,0.73635]
[1740011031215,0.5781,2716.4,2716.2,0.73636]
[1740011031514,1.31443,2716.4,2716.0,0.00551501]
[1740011031716,3.2078,2716.2,2716.0,0.00551501]
[1740011031903,2.428,2716.1,2716.0,0.00551501]
[1740011033708,2.428,2716.1,2716.0,0.74194501]
[1740011034311,2.428,2716.1,2716.0,0.00551501]
[1740011034916,3.1644,2716.1,2716.0,0.00551501]
[1740011037118,2.428,2716.1,2716.0,0.00551501]
[1740011037311,3.1644,2716.1,2716.0,0.00551501]
[1740011038108,0.73648,2715.9,2715.4,4.47779]
[1740011038313,0.73649,2715.8,2715.4,0.5334]
[1740011038608,3.2078,2715.6,2715.4,0.5334]
[1740011038815,3.2078,2715.6,2715.3,0.73661]
[1740011039920,3.2078,2715.6,2715.1,0.5469]
[1740011040222,3.2078,2715.6,2715.5,0.73657]
[1740011040412,5.6348,2715.6,2715.5,0.73657]
[1740011040610,3.2078,2715.6,2715.5,0.73657]
[1740011040817,5.6358,2715.6,2715.5,0.73657]
[1740011041020,0.5787,2716.5,2715.1,2.38858]
[1740011041021,3.2078,2715.9,2715.1,0.5469]
[1740011041219,3.2078,2715.9,2715.8,0.73649]
[1740011041819,3.2078,2715.9,2715.8,41.53649]
[1740011042423,3.2078,2715.9,2715.8,0.73649]
[1740011046325,2.434,2716.1,2716.0,0.73643]
[1740011050324,3.2078,2716.3,2716.2,0.73638]
[1740011051226,0.54071501,2716.6,2716.5,0.7363]
[1740011051227,2.43651501,2716.6,2716.5,0.7363]
[1740011051728,0.00551501,2716.6,2716.5,0.7363]
[1740011056334,2.43,2717.2,2716.4,0.5759]
[1740011056526,2.43,2717.2,2717.1,0.73613]
[1740011056729,2.43,2717.2,2716.6,3.2078]
[1740011056730,0.5771,2717.3,2716.6,3.2078]
[1740011056928,0.5771,2717.3,2717.2,0.73611]
[1740011057632,3.2078,2717.4,2717.3,0.73608]
[1740011057830,3.2078,2717.4,2717.2,0.73609]
[1740011058035,3.7526,2717.4,2717.2,0.73609]
[1740011058732,3.7526,2717.4,2717.3,0.73608]
[1740011059130,3.7526,2717.4,2717.2,0.7361]
[1740011059329,3.7526,2717.4,2717.0,0.00551501]
[1740011059535,3.7526,2717.4,2717.3,0.73608]
[1740011059929,3.7526,2717.4,2717.0,0.00551501]
[1740011060133,3.7526,2717.4,2717.2,0.7361]
[1740011060432,3.7526,2717.4,2717.0,0.00551501]
[1740011060635,3.7526,2717.4,2717.2,0.73609]
[1740011061333,3.7526,2717.4,2717.3,0.73608]
[1740011061637,3.7526,2717.4,2717.0,0.00551501]
[1740011062123,3.7526,2717.4,2717.2,0.73608]
[1740011063530,3.7526,2717.4,2717.0,0.00551501]
[1740011063730,3.7526,2717.4,2717.1,0.73612]
[1740011064035,3.7526,2717.4,2717.0,0.74166501]
[1740011064234,3.7526,2717.4,2717.1,0.73613]
[1740011064935,3.7526,2717.4,2717.2,0.7361]
[1740011065329,3.7526,2717.4,2717.0,0.00551501]
[1740011065533,3.7526,2717.4,2717.1,0.73611]
[1740011065835,3.7526,2717.4,2717.0,0.00551501]
[1740011066036,3.7526,2717.4,2717.2,0.7361]
[1740011066231,3.7526,2717.4,2717.0,0.00551501]
[1740011066434,3.7526,2717.4,2717.1,0.73613]
[1740011067038,3.7526,2717.4,2717.2,0.73609]
[1740011067239,3.7526,2717.4,2717.3,0.73608]
[1740011068033,3.7526,2717.4,2717.0,0.00551501]
[1740011068435,3.7526,2717.4,2717.3,0.73608]
[1740011069836,6.1776,2717.4,2717.3,0.73608]
[1740011070037,6.1766,2717.4,2717.3,0.73608]
[1740011071040,3.2078,2717.4,2717.3,0.73608]
[1740011072939,0.00551501,2717.5,2717.4,0.73605]
[1740011074438,0.00551501,2717.5,2717.4,3.94385]
[1740011077543,0.00551501,2717.5,2717.4,44.74385]
[1740011078439,3.2078,2718.0,2717.9,0.73592]
[1740011082847,1.15601501,2718.2,2717.7,1.1403]
[1740011083046,1.15601501,2718.2,2718.1,0.73586]
[1740011083943,3.2078,2718.6,2718.1,3.94366]
[1740011084148,3.2078,2718.6,2718.5,0.73575]
[1740011086860,0.00551501,2718.8,2718.3,0.5455]
[1740011087062,0.00551501,2718.8,2718.7,0.7357]
[1740011088160,1.0908,2719.1,2719.0,0.73562]
[1740011088463,3.5847,2719.5,2719.4,0.73551]
[1740011088654,4.1698,2719.5,2719.4,0.73551]
[1740011088854,3.595,2719.5,2719.4,0.73551]
[1740011090354,3.2078,2719.6,2719.0,3.7663]
[1740011090557,0.00551501,2719.7,2719.0,3.7663]
[1740011090558,0.00551501,2719.7,2719.6,0.73546]
[1740011091558,0.53851501,2719.7,2719.6,0.73546]
[1740011092856,0.53851501,2719.7,2719.0,6.1903]
[1740011093062,0.549,2719.6,2719.5,0.73546]
[1740011093861,0.549,2719.6,2718.5,0.00551501]
[1740011093862,3.7568,2719.6,2718.7,3.2078]
[1740011094056,3.7568,2719.6,2718.6,4.3081]
[1740011094261,3.7568,2719.6,2719.3,0.73552]
[1740011094457,3.7568,2719.6,2718.6,6.14741]
[1740011094458,3.7568,2719.6,2719.2,0.73555]
[1740011094865,4.49228,2719.6,2719.0,0.7356]
[1740011095167,3.2078,2719.3,2718.6,1.1003]
[1740011095361,0.5844,2719.2,2719.0,0.73561]
[1740011095664,0.5844,2719.2,2718.9,0.73563]
[1740011095863,0.5844,2719.2,2718.6,6.7381]
[1740011096065,0.5844,2719.2,2719.0,0.7356]
[1740011096265,0.5844,2719.2,2718.6,6.7381]
[1740011096466,0.5844,2719.2,2718.9,0.73563]
[1740011096861,3.2078,2719.3,2718.6,6.7381]
[1740011097168,3.9432,2719.9,2719.3,0.73552]
[1740011097463,3.2078,2719.4,2719.1,0.73557]
[1740011097666,1.1194,2719.3,2719.1,0.73557]
[1740011097962,1.1194,2719.3,2719.2,0.73556]
[1740011098154,0.00551501,2719.7,2719.0,0.5742]
[1740011098358,1.1194,2719.6,2719.3,0.73552]
[1740011098657,1.1194,2719.6,2719.0,3.5757]
[1740011098854,1.1194,2719.6,2719.5,0.73548]
[1740011099057,1.1194,2719.6,2719.4,0.73549]
[1740011099862,1.1194,2719.6,2719.1,0.5408]
[1740011100060,1.1194,2719.6,2719.5,0.73548]
[1740011102464,0.00551501,2719.7,2719.6,0.73546]
[1740011102664,0.00551501,2719.7,2719.6,1.28016]
[1740011102867,0.00551501,2719.7,2719.6,2.43516]
[1740011104163,0.00551501,2719.7,2719.2,3.2078]
[1740011104368,0.00551501,2719.7,2719.3,1.28022]
[1740011104764,3.94326,2719.6,2719.2,3.94336]
[1740011104967,3.2078,2719.3,2719.0,0.73559]
[1740011105264,3.2078,2719.3,2719.1,0.73559]
[1740011105265,1.079,2719.2,2719.1,0.73559]
[1740011105569,1.079,2719.2,2718.8,0.5447]
[1740011105766,1.079,2719.2,2719.1,0.73559]
[1740011106366,1.079,2719.2,2718.8,0.5447]
[1740011106559,3.2078,2719.0,2718.9,0.73563]
[1740011107774,3.2078,2719.4,2718.8,0.5447]
[1740011107969,3.2078,2719.4,2719.2,0.73554]
[1740011108169,3.2078,2719.4,2719.3,0.73554]
[1740011108968,3.2078,2719.4,2719.1,0.73558]
[1740011109475,3.2078,2719.4,2719.2,0.73556]
[1740011110366,3.2078,2719.4,2718.9,0.5816]
[1740011111075,3.2078,2719.4,2719.2,0.73556]
[1740011111273,3.2078,2719.4,2719.1,0.73558]
[1740011112269,3.2078,2719.4,2719.2,0.73556]
[1740011112577,1.1157,2719.6,2719.5,0.73548]
[1740011113675,1.1157,2719.6,2719.4,0.7355]
[1740011114173,1.1157,2719.6,2719.3,0.73551]
[1740011114770,1.1157,2719.6,2719.2,0.5754]
[1740011114977,3.2078,2719.4,2719.3,0.73552]
[1740011115870,1.1157,2719.6,2719.5,0.73548]
[1740011116265,3.21331501,2719.7,2719.2,2.41432]
[1740011116469,3.21331501,2719.7,2719.6,0.73546]
[1740011118177,3.2078,2720.3,2719.4,3.2078]
[1740011118380,3.2078,2720.3,2720.2,0.73529]
[1740011118676,3.2078,2720.3,2720.1,0.73531]
[1740011118980,0.5353,2720.2,2720.1,0.73531]
[1740011119282,0.5353,2720.2,2719.9,0.73536]
[1740011119577,3.0036,2720.1,2719.9,0.74088501]
[1740011119773,3.2078,2720.0,2719.9,0.00551501]
[1740011119980,4.52075,2720.0,2719.9,0.00551501]
[1740011120172,3.7854,2720.0,2719.9,0.74088501]
[1740011120373,3.7854,2720.0,2719.9,0.00551501]
[1740011121077,4.52075,2720.0,2719.9,0.00551501]
[1740011121675,4.58048261,2720.0,2719.9,0.00551501]
[1740011122083,7.03548261,2720.0,2719.9,0.00551501]
[1740011122781,6.97575,2720.0,2719.9,0.00551501]
[1740011123882,6.2404,2720.0,2719.9,0.00551501]
[1740011124081,3.2078,2720.0,2719.9,0.74088501]
[1740011125784,3.7612,2720.3,2719.9,0.00551501]
[1740011125987,3.7612,2720.3,2720.2,0.73529]
[1740011130186,3.2078,2720.3,2720.2,0.73529]
[1740011131378,0.00551501,2720.4,2720.1,0.5329]
[1740011131578,0.00551501,2720.4,2720.3,0.73527]
[1740011132885,0.00551501,2720.4,2720.2,0.73528]
[1740011133085,0.00551501,2720.4,2720.1,0.5329]
[1740011133286,0.00551501,2720.4,2720.2,0.73528]
[1740011133981,0.00551501,2720.4,2720.3,0.73527]
[1740011135385,0.00551501,2720.4,2720.1,0.5329]
[1740011135580,0.00551501,2720.4,2720.2,0.73528]
[1740011135983,0.00551501,2720.4,2720.3,0.73527]
[1740011136483,0.00551501,2720.4,2719.9,0.00551501]
[1740011136691,3.94311,2720.2,2719.9,0.74087501]
[1740011136986,2.995,2720.1,2719.9,0.00551501]
[1740011137186,1.1369,2720.0,2719.9,0.00551501]
[1740011137387,1.1369,2720.0,2719.9,0.74088501]
[1740011137787,1.1369,2720.0,2719.9,0.00551501]
[1740011138087,1.1369,2720.0,2719.9,0.74088501]
[1740011140384,1.1369,2720.0,2719.9,0.00551501]
[1740011141487,1.1369,2720.0,2719.9,0.74088501]
[1740011141795,1.1369,2720.0,2719.9,0.00551501]
[1740011142793,1.87225,2720.0,2719.9,0.00551501]
[1740011143089,1.9319807,2720.0,2719.9,0.00551501]
[1740011143992,7.19663301,2720.0,2719.3,0.73553]
[1740011144287,3.2078,2719.4,2719.3,0.73553]
[1740011144495,3.2078,2719.4,2719.0,1.164]
[1740011144686,3.2078,2719.4,2719.1,0.73559]
[1740011144995,1.1446,2719.3,2719.1,0.73559]
[1740011145196,1.1446,2719.3,2719.2,0.73556]
[1740011145686,1.1446,2719.3,2719.1,0.73558]
[1740011146091,1.1446,2719.3,2719.0,1.16951501]
[1740011146393,1.1446,2719.3,2719.1,0.73558]
[1740011146993,1.1446,2719.3,2719.0,1.16951501]
[1740011147187,3.2078,2719.4,2719.3,0.73554]
[1740011148286,3.2078,2719.4,2719.2,0.73555]
[1740011148691,3.2078,2719.4,2719.0,1.16951501]
[1740011149089,0.5449,2719.3,2719.0,1.90512501]
[1740011149292,0.5587,2719.2,2719.0,1.16951501]
[1740011149690,0.5587,2719.2,2719.0,1.90513501]
[1740011150184,5.6508,2719.1,2719.0,0.59141501]
[1740011150383,6.38639,2719.1,2719.0,0.00551501]
[1740011150582,5.6508,2719.1,2719.0,0.00551501]
[1740011150988,5.6508,2719.1,2719.0,0.74113501]
[1740011152100,3.2078,2719.1,2719.0,0.74113501]
[1740011152291,5.6538,2719.1,2719.0,0.74113501]
[1740011152989,5.6528,2719.1,2719.0,0.74113501]
[1740011156993,6.38839,2719.1,2719.0,0.00551501]
[1740011157797,6.44812428,2719.1,2719.0,0.00551501]
[1740011158797,6.38839,2719.1,2719.0,0.00551501]
[1740011159000,6.44812112,2719.1,2719.0,0.00551501]
[1740011160201,0.73567,2718.9,2718.5,0.73573]
[1740011160398,3.2078,2718.7,2718.6,0.73572]
[1740011160704,5.6448,2718.7,2718.6,0.73573]
[1740011162801,5.6448,2718.7,2718.4,0.00551501]
[1740011163105,5.6448,2718.7,2718.6,0.73573]
[1740011163604,5.6448,2718.7,2718.5,0.73575]
[1740011163807,5.6448,2718.7,2718.6,0.73573]
[1740011164194,5.6448,2718.7,2718.5,0.73574]
[1740011164706,5.6448,2718.7,2718.4,0.00551501]
[1740011164905,6.3805,2718.7,2718.4,0.00551501]
[1740011165301,5.6448,2718.7,2718.4,0.00551501]
[1740011165508,6.38052,2718.7,2718.4,0.00551501]
[1740011165700,6.38052,2718.7,2718.4,0.74128501]
[1740011166099,5.6448,2718.7,2718.4,0.00551501]
[1740011166409,0.73575,2718.5,2718.4,0.00551501]
[1740011166905,5.6448,2718.7,2718.4,0.00551501]
[1740011167102,0.73575,2718.5,2718.4,0.00551501]
[1740011167305,0.05976446,2718.5,2717.8,1.648]
[1740011167498,5.6448,2718.7,2717.9,0.7359]
[1740011167499,3.2078,2718.0,2717.9,0.7359]
[1740011167696,5.6458,2718.0,2717.9,0.7359]
[1740011168101,5.6458,2718.0,2717.8,2.38393]
[1740011168597,5.6458,2718.0,2717.8,1.1117]
[1740011169308,5.6458,2718.0,2717.8,1.84762]
[1740011169501,5.6458,2718.0,2717.8,1.1117]
[1740011169706,5.6458,2718.0,2717.8,1.84763]
[1740011169908,6.1808,2718.0,2717.8,1.84763]
[1740011170207,6.1808,2718.0,2717.8,0.5415]
[1740011170707,6.1808,2718.0,2717.8,1.27743]
[1740011171302,6.1808,2718.0,2717.9,0.73592]
[1740011171604,6.1808,2718.0,2717.8,1.27743]
[1740011171807,6.1808,2718.0,2717.8,0.5415]
[1740011171998,6.1808,2718.0,2717.9,0.73592]
[1740011177709,3.2078,2718.0,2717.9,0.73592]
[1740011177907,3.2078,2718.5,2718.4,0.73578]
[1740011178114,5.6398,2718.5,2718.4,0.73578]
[1740011178413,3.2078,2718.5,2718.4,0.73578]
[1740011183106,2.43251501,2718.9,2718.8,0.73567]
[1740011184215,2.43251501,2718.9,2718.2,3.7481]
[1740011184409,2.43251501,2718.9,2718.6,0.73571]